fUST/lending_fUST_20260508
["ID","MTS","AMOUNT","RATE_DAILY","PERIOD"]
[421796855,1778171458000,-500.0,0.00011232,2]
[421796856,1778171458000,-167.81,0.00011232,2]
[421796857,1778171458000,-500.0,0.00011232,2]
[421796858,1778171458000,-157.59,0.00011232,2]
[421796846,1778171458000,-500.0,0.00011232,2]
[421796868,1778171459000,-500.0,0.00011232,2]
[421796866,1778171459000,-500.0,0.00011232,2]
[421796865,1778171459000,-500.0,0.00011232,2]
[421796864,1778171459000,-1473.8,0.00011232,2]
[421796869,1778171459000,-3286.14,0.00011232,2]
[421796861,1778171459000,-500.0,0.00011232,2]
[421796862,1778171459000,-2254.6,0.00011232,2]
[421796860,1778171459000,-500.0,0.00011232,2]
[421796859,1778171459000,-500.0,0.00011232,2]
[421796863,1778171459000,-500.0,0.00011232,2]
[421796867,1778171459000,-500.0,0.00011232,2]
[421796874,1778171459000,-206.63,0.00011232,2]
[421796870,1778171459000,-500.0,0.00011232,2]
[421796872,1778171459000,-500.0,0.00011232,2]
[421796873,1778171459000,-500.0,0.00011232,2]
[421796881,1778171459000,-500.0,0.00011506,2]
[421796875,1778171459000,-433.8,0.00011232,2]
[421796876,1778171459000,-160.0,0.00011382,2]
[421796877,1778171459000,-160.0,0.00011382,2]
[421796878,1778171459000,-160.0,0.00011382,2]
[421796880,1778171459000,-500.0,0.00011506,2]
[421796879,1778171459000,-161.57704075,0.00011382,2]
[421796871,1778171459000,-539.71,0.00011232,2]
[421796893,1778171460000,-350.25,0.00011506,2]
[421796891,1778171460000,-500.0,0.00011506,2]
[421796890,1778171460000,-2254.6,0.00011506,2]
[421796892,1778171460000,-1473.8,0.00011506,2]
[421796888,1778171460000,-500.0,0.00011506,2]
[421796882,1778171460000,-584.35,0.00011506,2]
[421796886,1778171460000,-500.0,0.00011506,2]
[421796885,1778171460000,-500.0,0.00011506,2]
[421796884,1778171460000,-500.0,0.00011506,2]
[421796894,1778171460000,-322.14,0.00011506,2]
[421796883,1778171460000,-500.0,0.00011506,2]
[421796887,1778171460000,-500.0,0.00011506,2]
[421796895,1778171460000,-430.76,0.00011506,2]
[421796889,1778171460000,-500.0,0.00011506,2]
[421796897,1778171460000,-3286.14,0.00011506,2]
[421796896,1778171460000,-500.0,0.00011506,2]
[421796909,1778171460000,-442.0,0.00011551,2]
[421796906,1778171460000,-169.371,0.00011529,2]
[421796907,1778171460000,-456.3275979,0.00011531,2]
[421796903,1778171460000,-456.3275978,0.0001151,2]
[421796905,1778171460000,-456.0222448,0.0001151,2]
[421796908,1778171460000,-443.1606047,0.00011531,2]
[421796900,1778171460000,-500.0,0.00011506,2]
[421796901,1778171460000,-500.0,0.00011506,2]
[421796902,1778171460000,-456.3009281,0.0001151,2]
[421796899,1778171460000,-539.71,0.00011506,2]
[421796898,1778171460000,-500.0,0.00011506,2]
[421796904,1778171460000,-325.7485516,0.0001151,2]
[421796917,1778171461000,-997.78897014,0.00011759,2]
[421796910,1778171461000,-185.0,0.00011551,2]
[421796911,1778171461000,-4309.1828127,0.00011585,2]
[421796912,1778171461000,-22438.9744134,0.00011585,2]
[421796913,1778171461000,-477.48273591,0.00011586,2]
[421796915,1778171461000,-464.50809964,0.00011662,2]
[421796916,1778171461000,-997.78897014,0.00011759,2]
[421796914,1778171461000,-809.1069785,0.00011619,2]
[421796919,1778171461000,-561.21167229,0.00011759,2]
[421796924,1778171461000,-997.78897014,0.00011759,2]
[421796920,1778171461000,-997.78897014,0.00011759,2]
[421796921,1778171461000,-997.78897014,0.00011759,2]
[421796922,1778171461000,-997.78897014,0.00011759,2]
[421796923,1778171461000,-500.0,0.00011759,2]
[421796925,1778171461000,-156341.86733737,0.0001176,2]
[421796926,1778171461000,-585.22942909,0.0001176,2]
[421796927,1778171461000,-500.0,0.00010958,2]
[421796929,1778171461000,-6310.64888033,0.0001176,2]
[421796928,1778171461000,-6557.23552157,0.0001176,2]
[421796918,1778171461000,-997.78897014,0.00011759,2]
[421796933,1778171521000,543.66690958,0.00012,120]
[421796937,1778171753000,152.0,9.789e-05,30]
[421797072,1778172639000,-4629.90808308,8.673e-05,2]
[421797077,1778172639000,-403.41542183,8.717e-05,2]
[421797079,1778172639000,-5000.0,8.761e-05,2]
[421797081,1778172639000,-44.8048114,8.849e-05,2]
[421797075,1778172639000,-370.09191692,8.673e-05,2]
[421797153,1778172640000,-300.0,9.682e-05,2]
[421797157,1778172640000,-300.0,9.682e-05,2]
[421797155,1778172640000,-300.0,9.682e-05,2]
[421797151,1778172640000,-300.0,9.682e-05,2]
[421797138,1778172640000,-300.0,9.682e-05,2]
[421797140,1778172640000,-300.0,9.682e-05,2]
[421797145,1778172640000,-300.0,9.682e-05,2]
[421797147,1778172640000,-300.0,9.682e-05,2]
[421797134,1778172640000,-151.0,9.653e-05,2]
[421797136,1778172640000,-2763.16811609,9.682e-05,2]
[421797143,1778172640000,-300.0,9.682e-05,2]
[421797142,1778172640000,-300.0,9.682e-05,2]
[421797130,1778172640000,-151.0,9.462e-05,2]
[421797128,1778172640000,-4955.1951886,8.849e-05,2]
[421797161,1778172640000,-300.0,9.682e-05,2]
[421797163,1778172640000,-300.0,9.682e-05,2]
[421797132,1778172640000,-151.0,9.462e-05,2]
[421797159,1778172640000,-300.0,9.682e-05,2]
[421797149,1778172640000,-300.0,9.682e-05,2]
[421797193,1778172640000,-11558.12252763,0.000106,2]
[421797184,1778172640000,-447.14226446,0.00010583,2]
[421797186,1778172640000,-151.5,0.00010583,2]
[421797180,1778172640000,-151.5,0.00010583,2]
[421797182,1778172640000,-500.0,0.00010583,2]
[421797190,1778172640000,-10290.55335798,0.000106,2]
[421797195,1778172640000,-12825.69169737,0.000106,2]
[421797188,1778172640000,-5348.84835711,0.000106,2]
[421797171,1778172640000,-197.0,0.00010583,2]
[421797169,1778172640000,-151.5,0.00010583,2]
[421797175,1778172640000,-151.5,0.00010583,2]
[421797173,1778172640000,-500.0,0.00010583,2]
[421797165,1778172640000,-300.0,9.682e-05,2]
[421797178,1778172640000,-500.0,0.00010583,2]
[421797167,1778172640000,-151.5,0.00010583,2]
[421797227,1778172641000,-500.0,0.00010756,2]
[421797230,1778172641000,-602.5760749,0.00010756,2]
[421797228,1778172641000,-500.0,0.00010756,2]
[421797234,1778172641000,-500.0,0.00010756,2]
[421797232,1778172641000,-500.0,0.00010756,2]
[421797239,1778172641000,-500.0,0.00010756,2]
[421797237,1778172641000,-745.00653872,0.00010756,2]
[421797241,1778172641000,-500.0,0.00010756,2]
[421797243,1778172641000,-500.0,0.00010756,2]
[421797249,1778172641000,-745.00653872,0.00010756,2]
[421797251,1778172641000,-500.0,0.00010756,2]
[421797225,1778172641000,-384.63434237,0.00010756,2]
[421797236,1778172641000,-500.0,0.00010756,2]
[421797223,1778172641000,-745.00653872,0.00010756,2]
[421797219,1778172641000,-745.00653872,0.00010756,2]
[421797208,1778172641000,-242.8481706,0.00010756,2]
[421797215,1778172641000,-745.00653872,0.00010756,2]
[421797213,1778172641000,-745.00653872,0.00010756,2]
[421797211,1778172641000,-745.00653872,0.00010756,2]
[421797210,1778172641000,-745.00653872,0.00010756,2]
[421797221,1778172641000,-745.00653872,0.00010756,2]
[421797205,1778172641000,-745.00653872,0.00010756,2]
[421797203,1778172641000,-500.0,0.00010756,2]
[421797207,1778172641000,-500.0,0.00010756,2]
[421797199,1778172641000,-476.03019776,0.00010717,2]
[421797197,1778172641000,-200.0,0.00010683,2]
[421797201,1778172641000,-528.26203795,0.0001075,2]
[421797247,1778172641000,-500.0,0.00010756,2]
[421797217,1778172641000,-745.00653872,0.00010756,2]
[421797253,1778172641000,-500.0,0.00010756,2]
[421797245,1778172641000,-500.0,0.00010756,2]
[421797256,1778172641000,-500.0,0.00010756,2]
[421797309,1778172641000,-1143.06234944,0.00010756,2]
[421797307,1778172641000,-1143.06234944,0.00010756,2]
[421797301,1778172641000,-1143.06234944,0.00010756,2]
[421797299,1778172641000,-500.0,0.00010756,2]
[421797313,1778172641000,-777609.82293099,0.00010757,2]
[421797311,1778172641000,-1619.33832835,0.00010756,2]
[421797296,1778172641000,-1072.21928925,0.00010756,2]
[421797297,1778172641000,-500.0,0.00010756,2]
[421797289,1778172641000,-1072.21928925,0.00010756,2]
[421797291,1778172641000,-1072.21928925,0.00010756,2]
[421797293,1778172641000,-1072.21928925,0.00010756,2]
[421797288,1778172641000,-1072.21928925,0.00010756,2]
[421797284,1778172641000,-1072.21928925,0.00010756,2]
[421797303,1778172641000,-1143.06234944,0.00010756,2]
[421797286,1778172641000,-1072.21928925,0.00010756,2]
[421797280,1778172641000,-500.0,0.00010756,2]
[421797276,1778172641000,-279.28348545,0.00010756,2]
[421797274,1778172641000,-500.0,0.00010756,2]
[421797270,1778172641000,-500.0,0.00010756,2]
[421797278,1778172641000,-500.0,0.00010756,2]
[421797271,1778172641000,-500.0,0.00010756,2]
[421797267,1778172641000,-745.00653872,0.00010756,2]
[421797264,1778172641000,-500.0,0.00010756,2]
[421797266,1778172641000,-500.0,0.00010756,2]
[421797262,1778172641000,-500.0,0.00010756,2]
[421797258,1778172641000,-500.0,0.00010756,2]
[421797260,1778172641000,-500.0,0.00010756,2]
[421797305,1778172641000,-1143.06234944,0.00010756,2]
[421797282,1778172641000,-745.00653872,0.00010756,2]
[421797255,1778172641000,-500.0,0.00010756,2]
[421797504,1778172646000,-7991.69968715,0.00010757,2]
[421797505,1778172646000,-609.82290944,0.00010757,2]
[421797527,1778172704000,284.04958495,0.00012,120]
[421797536,1778173235000,-3218.31260341,9.634e-05,2]
[421797537,1778173252000,-1781.68739659,9.731e-05,2]
[421797538,1778173269000,-3218.31260341,9.731e-05,2]
[421797539,1778173285000,-402.76440763,9.78e-05,2]
[421797540,1778173303000,-4597.23559237,9.585e-05,2]
[421797541,1778173320000,-402.76440763,9.585e-05,2]
[421797543,1778173337000,-4597.23559237,9.682e-05,2]
[421797544,1778173354000,-402.76440763,9.682e-05,2]
[421797556,1778173525000,2129.28809085,7.6e-05,2]
[421797662,1778173832000,-500.0,0.00010684,2]
[421797659,1778173832000,-48507.02674972,0.00010456,2]
[421797653,1778173832000,-468.71306685,0.00010455,2]
[421797651,1778173832000,-165.46514253,0.00010455,2]
[421797655,1778173832000,-500.0,0.00010455,2]
[421797657,1778173832000,-95192.33891697,0.00010456,2]
[421797649,1778173832000,-500.0,0.00010455,2]
[421797647,1778173832000,-622.50845277,0.00010455,2]
[421797660,1778173832000,-324.5339421,0.000105,2]
[421797631,1778173832000,-5000.0,9.778e-05,2]
[421797642,1778173832000,-2715.4409479,0.00010345,2]
[421797644,1778173832000,-5277.0,0.00010454,2]
[421797629,1778173832000,-4511.81456902,9.68e-05,2]
[421797666,1778173832000,-151.5,0.00010684,2]
[421797632,1778173832000,-394.70911947,9.927e-05,2]
[421797638,1778173832000,-180.24,0.00010345,2]
[421797640,1778173832000,-15169.7408302,0.00010345,2]
[421797636,1778173832000,-5207.73169948,0.0001018,2]
[421797634,1778173832000,-423.0,0.0001,5]
[421797646,1778173832000,-19057.85702721,0.00010455,2]
[421797677,1778173832000,-268.44357993,0.00010684,2]
[421797664,1778173832000,-151.5,0.00010684,2]
[421797681,1778173832000,-500.0,0.00010684,2]
[421797711,1778173832000,-2128.93648828,0.00010755,2]
[421797713,1778173832000,-66.46598195,0.00010755,2]
[421797708,1778173832000,-99.08418232,0.00010755,2]
[421797707,1778173832000,-2847.4593114,0.00010755,2]
[421797698,1778173832000,-500.0,0.00010684,2]
[421797700,1778173832000,-500.0,0.00010684,2]
[421797702,1778173832000,-469.49447973,0.00010684,2]
[421797704,1778173832000,-152.0,0.00010716,7]
[421797694,1778173832000,-395.94805721,0.00010684,2]
[421797696,1778173832000,-500.0,0.00010684,2]
[421797691,1778173832000,-169.84333726,0.00010684,2]
[421797693,1778173832000,-500.0,0.00010684,2]
[421797689,1778173832000,-500.0,0.00010684,2]
[421797687,1778173832000,-500.0,0.00010684,2]
[421797675,1778173832000,-202.25720741,0.00010684,2]
[421797671,1778173832000,-151.5,0.00010684,2]
[421797673,1778173832000,-500.0,0.00010684,2]
[421797685,1778173832000,-500.0,0.00010684,2]
[421797669,1778173832000,-151.5,0.00010684,2]
[421797668,1778173832000,-500.0,0.00010684,2]
[421797683,1778173832000,-500.0,0.00010684,2]
[421797679,1778173832000,-500.0,0.00010684,2]
[421797819,1778173838000,-327.5149492,0.00010501,2]
[421797821,1778173838000,-2096.2550508,0.00010647,2]
[421797828,1778173838000,-932.59299656,0.00010647,2]
[421797956,1778173839000,-920.33318844,0.00010957,2]
[421797910,1778173839000,-767.70631509,0.00010957,2]
[421797908,1778173839000,-767.70631509,0.00010957,2]
[421797917,1778173839000,-767.70631509,0.00010957,2]
[421797933,1778173839000,-779.51718147,0.00010957,2]
[421797922,1778173839000,-767.70631509,0.00010957,2]
[421797935,1778173839000,-779.51718147,0.00010957,2]
[421797947,1778173839000,-779.51718147,0.00010957,2]
[421797924,1778173839000,-767.70631509,0.00010957,2]
[421797931,1778173839000,-779.51718147,0.00010957,2]
[421797915,1778173839000,-767.70631509,0.00010957,2]
[421797919,1778173839000,-767.70631509,0.00010957,2]
[421797926,1778173839000,-767.70631509,0.00010957,2]
[421797928,1778173839000,-779.51718147,0.00010957,2]
[421797938,1778173839000,-779.51718147,0.00010957,2]
[421797951,1778173839000,-779.51718147,0.00010957,2]
[421797954,1778173839000,-920.33318844,0.00010957,2]
[421797942,1778173839000,-779.51718147,0.00010957,2]
[421797945,1778173839000,-779.51718147,0.00010957,2]
[421797905,1778173839000,-174.34627697,0.00010957,2]
[421797903,1778173839000,-767.70631509,0.00010957,2]
[421797889,1778173839000,-174.02,0.00010922,2]
[421797899,1778173839000,-767.70631509,0.00010957,2]
[421797852,1778173839000,-1971.15195264,0.00010647,2]
[421797854,1778173839000,-5846.65190975,0.00010755,2]
[421797856,1778173839000,-152.0,0.00010757,7]
[421797859,1778173839000,-152.0,0.00010757,7]
[421797865,1778173839000,-170.59,0.00010806,2]
[421797869,1778173839000,-171.68,0.00010843,2]
[421797863,1778173839000,-500.0,0.00010757,2]
[421797867,1778173839000,-168.07,0.00010838,2]
[421797874,1778173839000,-400.0,0.0001085,3]
[421797877,1778173839000,-500.0,0.0001085,2]
[421797886,1778173839000,-176.26,0.00010922,2]
[421797884,1778173839000,-172.73,0.00010887,2]
[421797882,1778173839000,-168.84,0.00010875,2]
[421797879,1778173839000,-168.32,0.0001085,2]
[421797872,1778173839000,-800.0,0.0001085,2]
[421797891,1778173839000,-151.0,0.00010939,2]
[421797894,1778173839000,-1868.68547439,0.00010946,21]
[421797896,1778173839000,-767.70631509,0.00010957,2]
[421797901,1778173839000,-500.0,0.00010957,2]
[421797912,1778173839000,-767.70631509,0.00010957,2]
[421797940,1778173839000,-779.51718147,0.00010957,2]
[421797993,1778173839000,-500.36690506,0.00010958,2]
[421797949,1778173839000,-779.51718147,0.00010957,2]
[421798010,1778173839000,-500.0,0.00010958,2]
[421798013,1778173839000,-500.0,0.00010958,2]
[421798026,1778173839000,-500.0,0.00010958,2]
[421798015,1778173839000,-500.0,0.00010958,2]
[421798028,1778173839000,-501.19637908,0.00010958,2]
[421798037,1778173839000,-500.0,0.00010958,2]
[421798031,1778173839000,-501.00857813,0.00010958,2]
[421798040,1778173839000,-500.86516462,0.00010958,2]
[421798035,1778173839000,-500.0,0.00010958,2]
[421798033,1778173839000,-500.92320669,0.00010958,2]
[421798042,1778173839000,-517.37644172,0.00010958,2]
[421798047,1778173839000,-500.19385846,0.00010958,2]
[421798049,1778173839000,-501.40010903,0.00010958,2]
[421798051,1778173839000,-359.33980818,0.00010958,2]
[421798056,1778173839000,-500.48820191,0.00010958,2]
[421798058,1778173839000,-500.0,0.00010958,2]
[421798054,1778173839000,-500.90267971,0.00010958,2]
[421798060,1778173839000,-500.0,0.00010958,2]
[421797958,1778173839000,-735.130611,0.00010958,2]
[421798008,1778173839000,-500.0,0.00010958,2]
[421798023,1778173839000,-500.0,0.00010958,2]
[421798044,1778173839000,-500.0,0.00010958,2]
[421798021,1778173839000,-500.89585406,0.00010958,2]
[421798005,1778173839000,-500.0,0.00010958,2]
[421797963,1778173839000,-500.0,0.00010958,2]
[421797966,1778173839000,-500.0,0.00010958,2]
[421797978,1778173839000,-500.0,0.00010958,2]
[421797980,1778173839000,-291.95759954,0.00010958,2]
[421797968,1778173839000,-500.0,0.00010958,2]
[421797970,1778173839000,-11974.294578,0.00010958,2]
[421797985,1778173839000,-500.0,0.00010958,2]
[421797973,1778173839000,-500.0,0.00010958,2]
[421797982,1778173839000,-500.0,0.00010958,2]
[421797987,1778173839000,-500.0,0.00010958,2]
[421798017,1778173839000,-840.326348,0.00010958,2]
[421797975,1778173839000,-500.0,0.00010958,2]
[421798019,1778173839000,-500.24075608,0.00010958,2]
[421798000,1778173839000,-500.0,0.00010958,2]
[421797995,1778173839000,-515.00345696,0.00010958,2]
[421797961,1778173839000,-500.0,0.00010958,2]
[421797998,1778173839000,-500.24771566,0.00010958,2]
[421797991,1778173839000,-355.12740297,0.00010958,2]
[421797989,1778173839000,-500.41177027,0.00010958,2]
[421798003,1778173839000,-500.0,0.00010958,2]
[421798160,1778173840000,-300.0,0.00010971,2]
[421798131,1778173840000,-500.0,0.00010958,2]
[421798145,1778173840000,-300.0,0.00010971,2]
[421798128,1778173840000,-500.0,0.00010958,2]
[421798147,1778173840000,-300.0,0.00010971,2]
[421798126,1778173840000,-500.0,0.00010958,2]
[421798133,1778173840000,-300.0,0.00010971,2]
[421798137,1778173840000,-300.0,0.00010971,2]
[421798140,1778173840000,-300.0,0.00010971,2]
[421798143,1778173840000,-300.0,0.00010971,2]
[421798142,1778173840000,-300.0,0.00010971,2]
[421798134,1778173840000,-300.0,0.00010971,2]
[421798172,1778173840000,-152.6926396,0.0001112,2]
[421798162,1778173840000,-300.0,0.00010971,2]
[421798158,1778173840000,-300.0,0.00010971,2]
[421798152,1778173840000,-300.0,0.00010971,2]
[421798154,1778173840000,-300.0,0.00010971,2]
[421798164,1778173840000,-401.69,0.00011,2]
[421798156,1778173840000,-300.0,0.00010971,2]
[421798168,1778173840000,-208.7353993,0.00011119,2]
[421798170,1778173840000,-151.0,0.00011119,2]
[421798174,1778173840000,-1868.6854744,0.0001119,21]
[421798185,1778173840000,-500.0,0.00011232,2]
[421798176,1778173840000,-445.202766,0.00011198,2]
[421798124,1778173840000,-614.08479381,0.00010958,2]
[421798149,1778173840000,-300.0,0.00010971,2]
[421798116,1778173840000,-500.0,0.00010958,2]
[421798071,1778173840000,-500.70142631,0.00010958,2]
[421798122,1778173840000,-500.0,0.00010958,2]
[421798062,1778173840000,-168.204267,0.00010958,2]
[421798068,1778173840000,-500.0,0.00010958,2]
[421798065,1778173840000,-592.50754513,0.00010958,2]
[421798076,1778173840000,-500.25174671,0.00010958,2]
[421798074,1778173840000,-500.74932097,0.00010958,2]
[421798063,1778173840000,-500.23946557,0.00010958,2]
[421798192,1778173840000,-500.0,0.00011232,2]
[421798091,1778173840000,-556.24771766,0.00010958,2]
[421798089,1778173840000,-12365.503893,0.00010958,2]
[421798093,1778173840000,-500.0,0.00010958,2]
[421798078,1778173840000,-518.34867281,0.00010958,2]
[421798080,1778173840000,-501.17731754,0.00010958,2]
[421798114,1778173840000,-500.0,0.00010958,2]
[421798095,1778173840000,-500.0,0.00010958,2]
[421798082,1778173840000,-460.4,0.00010958,2]
[421798085,1778173840000,-222.31319857,0.00010958,2]
[421798087,1778173840000,-501.41649837,0.00010958,2]
[421798101,1778173840000,-500.0,0.00010958,2]
[421798099,1778173840000,-1972.77,0.00010958,2]
[421798103,1778173840000,-500.0,0.00010958,2]
[421798105,1778173840000,-1587.73,0.00010958,2]
[421798111,1778173840000,-514.0,0.00010958,2]
[421798107,1778173840000,-928.98,0.00010958,2]
[421798109,1778173840000,-500.0,0.00010958,2]
[421798120,1778173840000,-1875.0,0.00010958,2]
[421798118,1778173840000,-3104.21,0.00010958,2]
[421798097,1778173840000,-364.69600702,0.00010958,2]
[421798188,1778173840000,-174.04,0.00011232,2]
[421798166,1778173840000,-600.0,0.00011073,2]
[421798193,1778173840000,-500.0,0.00011232,2]
[421798249,1778173840000,-442.0,0.00011336,2]
[421798251,1778173840000,-161.57704075,0.00011364,2]
[421798255,1778173840000,-213.324,0.00011453,2]
[421798261,1778173840000,-233.78,0.00011506,2]
[421798257,1778173840000,-150.358,0.00011453,2]
[421798259,1778173840000,-250.0,0.00011453,2]
[421798265,1778173840000,-500.0,0.00011506,2]
[421798263,1778173840000,-500.0,0.00011506,2]
[421798267,1778173840000,-500.0,0.00011506,2]
[421798269,1778173840000,-500.0,0.00011506,2]
[421798271,1778173840000,-500.0,0.00011506,2]
[421798280,1778173840000,-500.0,0.00011506,2]
[421798247,1778173840000,-185.0,0.00011336,2]
[421798282,1778173840000,-500.0,0.00011506,2]
[421798272,1778173840000,-1972.77,0.00011506,2]
[421798284,1778173840000,-500.0,0.00011506,2]
[421798276,1778173840000,-1587.73,0.00011506,2]
[421798278,1778173840000,-928.98,0.00011506,2]
[421798286,1778173840000,-3104.21,0.00011506,2]
[421798288,1778173840000,-1875.0,0.00011506,2]
[421798290,1778173840000,-500.0,0.00011506,2]
[421798292,1778173840000,-252.62048279,0.00011506,2]
[421798294,1778173840000,-795.44651075,0.0001157,2]
[421798296,1778173840000,-800.0,0.00011594,2]
[421798301,1778173840000,-151.0,0.000116,2]
[421798298,1778173840000,-151.0,0.000116,2]
[421798274,1778173840000,-500.0,0.00011506,2]
[421798244,1778173840000,-161.57704075,0.00011334,2]
[421798253,1778173840000,-161.57704075,0.00011382,2]
[421798226,1778173840000,-46090.21409045,0.00011305,2]
[421798196,1778173840000,-500.0,0.00011232,2]
[421798182,1778173840000,-182.69761814,0.00011232,2]
[421798178,1778173840000,-537.6845,0.00011198,2]
[421798183,1778173840000,-500.0,0.00011232,2]
[421798179,1778173840000,-500.0,0.00011232,2]
[421798200,1778173840000,-500.0,0.00011232,2]
[421798203,1778173840000,-500.0,0.00011232,2]
[421798201,1778173840000,-1972.77,0.00011232,2]
[421798214,1778173840000,-500.0,0.00011232,2]
[421798243,1778173840000,-160.0,0.00011334,2]
[421798209,1778173840000,-500.0,0.00011232,2]
[421798205,1778173840000,-1587.73,0.00011232,2]
[421798198,1778173840000,-500.0,0.00011232,2]
[421798207,1778173840000,-928.98,0.00011232,2]
[421798211,1778173840000,-500.0,0.00011232,2]
[421798241,1778173840000,-160.0,0.00011334,2]
[421798230,1778173840000,-430.8943522,0.00011322,2]
[421798217,1778173840000,-1875.0,0.00011232,2]
[421798237,1778173840000,-1411.0,0.00011331,2]
[421798239,1778173840000,-160.0,0.00011334,2]
[421798228,1778173840000,-325.7282482,0.00011322,2]
[421798189,1778173840000,-500.0,0.00011232,2]
[421798224,1778173840000,-557.5788265,0.00011253,2]
[421798235,1778173840000,-183.965,0.00011331,2]
[421798221,1778173840000,-500.0,0.00011232,2]
[421798219,1778173840000,-500.0,0.00011232,2]
[421798215,1778173840000,-3104.21,0.00011232,2]
[421798232,1778173840000,-2215.0,0.00011331,2]
[421798391,1778173841000,-1788.92292671,0.0001176,2]
[421798392,1778173841000,-394.65,0.0001176,2]
[421798304,1778173841000,-800.0,0.00011662,2]
[421798302,1778173841000,-309.67206643,0.00011662,2]
[421798307,1778173841000,-4810.982655,0.00011713,2]
[421798311,1778173841000,-800.0,0.00011733,2]
[421798309,1778173841000,-800.0,0.00011718,2]
[421798313,1778173841000,-667386.41471561,0.0001176,2]
[421798420,1778173844000,-206.44804429,0.00011662,2]
[421798421,1778173844000,-1723.59360952,0.0001176,2]
[421798446,1778173847000,-3890.41994045,0.0001176,2]
[421798445,1778173847000,-206.44804429,0.00011662,2]
[421798444,1778173847000,-500.0,0.00011506,2]
[421798443,1778173847000,-500.0,0.00011232,2]
[421798442,1778173847000,-500.0,0.00010958,2]
[421798448,1778173850000,8448.0,0.00011,30]
[421798449,1778173900000,10000.0,0.00011,30]
[421798450,1778173919000,10000.0,0.00012,120]
[421798451,1778173940000,10000.0,0.00011,30]
[421798452,1778173960000,10000.0,0.00011,30]
[421798454,1778173972000,10000.0,0.00011,30]
[421798514,1778175034000,-4687.53156141,8.328e-05,2]
[421798789,1778175038000,-329.1125524,0.00010584,2]
[421798785,1778175038000,-1984.16810249,0.000105,2]
[421798805,1778175038000,-1000.0,0.000107,2]
[421798783,1778175038000,-1775.50715189,0.000105,2]
[421798766,1778175038000,-300.0,9.582e-05,2]
[421798834,1778175038000,-247.561,0.00010957,2]
[421798778,1778175038000,-1176.0502304,0.00010345,2]
[421798808,1778175038000,-1000.0,0.000107,2]
[421798812,1778175038000,-1000.0,0.000107,2]
[421798791,1778175038000,-500.0,0.00010649,2]
[421798803,1778175038000,-197.0,0.00010684,2]
[421798825,1778175038000,-1000.0,0.000107,2]
[421798801,1778175038000,-151.5,0.00010684,2]
[421798798,1778175038000,-151.5,0.00010684,2]
[421798816,1778175038000,-1000.0,0.000107,2]
[421798814,1778175038000,-1000.0,0.000107,2]
[421798768,1778175038000,-300.0,9.582e-05,2]
[421798831,1778175038000,-5438.03906717,0.00010857,2]
[421798818,1778175038000,-1000.0,0.000107,2]
[421798823,1778175038000,-1000.0,0.000107,2]
[421798820,1778175038000,-1000.0,0.000107,2]
[421798829,1778175038000,-720.0,0.0001075,2]
[421798827,1778175038000,-679.499583,0.000107,2]
[421798809,1778175038000,-1000.0,0.000107,2]
[421798780,1778175038000,-799.33824853,0.000105,2]
[421798760,1778175038000,-300.0,9.582e-05,2]
[421798776,1778175038000,-456.3275978,0.00010298,2]
[421798717,1778175038000,-312.46843859,8.328e-05,2]
[421798730,1778175038000,-300.0,8.539e-05,2]
[421798725,1778175038000,-1738.78982764,8.412e-05,2]
[421798732,1778175038000,-300.0,8.539e-05,2]
[421798738,1778175038000,-364.0,9.393e-05,2]